[Event "1st Anfield Cup 2022"]
[Site "Kyiv"]
[Date "2022.09.25"]
[Round "5.5"]
[White "Maly, Alexey"]
[Black "Grinev, Valeriy"]
[Result "1-0"]
[ECO "D85"]
[WhiteElo "2370"]
[BlackElo "2425"]
[Annotator "TA"]
[PlyCount "64"]
[EventDate "2022.09.20"]
[EventType "swiss"]
[EventCountry "UKR"]
[SourceTitle "playchess.com"]
[Source "ChessBase"]
[SourceQuality "1"]
[TimeControl "900+10"]

{[%evp 23,64,17,12,-8,0,0,49,0,0,0,18,14,124,126,129,141,138,132,129,129,132,141,135,129,123,130,133,131,131,131,302,296,368,356,400,420,420,422,444,431,444,444,574]} 1. d4 {[%emt 0:00:02]} Nf6 {[%emt 0:00:07]} 2. c4 {[%emt 0:00:09]} g6 {[%emt 0:00:13]} 3. Nc3 {[%emt 0:00:08]} d5 {[%emt 0:00:05]} 4. cxd5 {[%emt 0:00:24]} Nxd5 {[%emt 0:00:04]} 5. e4 {[%emt 0:00:26]} Nxc3 {[%emt 0:00:03]} 6. bxc3 {[%emt 0:00:01][%cal Bb2c3,Bc3d4,Bd4d5,Bd5d6][%mdl 32]} Bg7 {[%emt 0:00:23]} 7. Nf3 {[%emt 0:00:33]} c5 {[%emt 0:00:40]} 8. Be3 {[%emt 0:00:21]} Qa5 {[%emt 0:00:33]} 9. Qd2 {[%emt 0:00:29]} Nc6 {[%emt 0:01:24]} 10. Rc1 {[%emt 0:01:07]} cxd4 {[%emt 0:01:03]} 11. cxd4 {[%emt 0:00:03]} Qxd2+ {[%emt 0:00:04]} 12. Kxd2 {[%emt 0:00:03]} O-O {[%emt 0:01:10]} 13. d5 {[%emt 0:01:39] D85: Exchange Grünfeld: Unusual White 7th moves and lines with 7 Nf3.} Na5 {[%emt 0:01:32]} 14. Rc7 {[%emt 0:02:21]} e6 {[%emt 0:01:32]} (14... f5 $11 {is superior.}) 15. Bc5 {[%emt 0:01:40]} (15. d6 $14 {deserves consideration.}) 15... Rd8 $11 {[%emt 0:00:08] [#]} 16. d6 $146 {[%emt 0:01:11]} ({Predecessor:} 16. Be7 Rd7 17. Rxd7 Bxd7 18. Bb4 b6 19. Ba6 exd5 20. exd5 Ba4 21. Bxa5 bxa5 22. Rb1 {½-½ (70) Andersen,H-Tschann,S (2220) Germany 2005}) 16... b6 {[%emt 0:02:13]} 17. Bb4 {[%emt 0:00:46]} Nb7 {[%emt 0:00:04]} (17... e5 $11 {remains equal.}) 18. e5 $16 {[%emt 0:01:01]} f6 {[%emt 0:02:42] [#]} 19. Nd4 $1 {[%emt 0:01:35] aiming for Nc6.} fxe5 {[%emt 0:02:42]} 20. Nc6 {[%emt 0:02:14] White has more active pieces.} Rxd6+ {[%emt 0:00:09]} 21. Bxd6 {[%emt 0:00:02]} Nxd6 {[%emt 0:00:03]} 22. Be2 {[%emt 0:00:55]} Bb7 {[%emt 0:00:46]} 23. Rd1 {[%emt 0:00:39]} Bxc6 {[%emt 0:00:44]} 24. Rxc6 {[%emt 0:00:01]} Nf5 {[%emt 0:00:02]} 25. Bc4 {[%emt 0:00:47]} Rd8+ {[%emt 0:00:21]} 26. Ke1 {[%emt 0:00:28]} Rxd1+ $2 {[%emt 0:00:04] [#] A mistake that costs the game.} (26... Nd4 $16 27. Bxe6+ Kh8) 27. Kxd1 {[%emt 0:00:00][%mdl 4096] Endgame KRB-KBN} Nd4 {[%emt 0:00:02]} 28. Bxe6+ {[%emt 0:00:28]} Kf8 {[%emt 0:00:23]} 29. Rc8+ {[%emt 0:00:12]} Ke7 {[%emt 0:00:01]} 30. Rc7+ {[%emt 0:00:09]} Kxe6 {[%emt 0:00:01] White is clearly winning.} 31. Rxg7 {[%emt 0:00:01]} a5 {[%emt 0:00:14]} 32. Rxh7 {[%emt 0:00:02]} Kd5 {Weighted Error Value: White=0.04 (flawless) /Black=0.29 (precise)} 1-0

[Event "1st Anfield Cup 2022"]
[Site "Kyiv"]
[Date "2022.09.25"]
[Round "5.6"]
[White "Samunenkov, Ihor"]
[Black "Kislinsky, Alexey"]
[Result "1-0"]
[ECO "B30"]
[WhiteElo "2469"]
[BlackElo "2301"]
[Annotator "TA"]
[PlyCount "71"]
[EventDate "2022.09.20"]
[EventType "swiss"]
[EventCountry "UKR"]
[SourceTitle "playchess.com"]
[Source "ChessBase"]
[SourceQuality "1"]
[TimeControl "900+10"]

{[%evp 16,71,15,17,54,35,79,72,109,114,126,117,125,112,116,81,98,35,186,191,188,163,164,170,216,131,147,125,132,126,210,141,231,214,305,316,331,328,273,314,297,277,292,257,295,295,442,456,609,632,585,617,1117,1108,1077,1041,933,883]} 1. e4 {[%emt 0:00:07]} c5 {[%emt 0:00:47]} 2. Nf3 {[%emt 0:00:02]} Nc6 {[%emt 0:00:02]} 3. Bb5 {[%emt 0:00:02]} d6 {[%emt 0:00:09]} 4. O-O {[%emt 0:00:15]} Bd7 {[%emt 0:00:08]} 5. Re1 {[%emt 0:00:03]} Nf6 {[%emt 0:00:01]} 6. c3 {[%emt 0:00:02][%cal Bc2c3,Bc3d4,Bd4d5][%mdl 32]} a6 {[%emt 0:00:03]} 7. Bf1 {[%emt 0:00:22]} Bg4 {[%emt 0:00:03]} 8. d4 {[%emt 0:00:06]} cxd4 {[%emt 0:01:06]} 9. cxd4 {[%emt 0:00:02]} Bxf3 {[%emt 0:00:10] B51: Sicilian: Moscow Variation (3 Bb5+) without 3...Bd7.} 10. gxf3 {[%emt 0:00:52] d5 is the strong threat.} e5 {[%emt 0:00:02] [#]} 11. d5 $1 {[%emt 0:01:12]} Nb8 {[%emt 0:00:01] White is better.} 12. Qb3 {[%emt 0:02:25]} Nbd7 {[%emt 0:00:04]} 13. Qxb7 {[%emt 0:01:43]} Be7 {[%emt 0:00:02]} 14. Be3 {[%emt 0:01:57]} ({Don't do} 14. Bxa6 $6 Nc5 15. Qc6+ Nfd7 $11) 14... O-O {[%emt 0:00:09]} 15. Nc3 {[%emt 0:00:47][%cal Bb1c3,Bc3e2,Be2g3,Bg3f5][%mdl 32] [#]} ({Worse is} 15. Bxa6 Qa5 16. b4 Qxa6 17. Qxa6 Rxa6 $17) 15... Nh5 $146 {[%emt 0:01:22]} ({Predecessor:} 15... Rb8 16. Qxa6 Nh5 17. Bb5 Nc5 18. Qa3 Bg5 19. Bxc5 dxc5 20. Qxc5 Bd2 21. Red1 Qg5+ {½-½ (44) Sjugirov,S (2663)-Safarli,E (2598) Chess.com INT 2021}) 16. Bh3 {[%emt 0:01:28] White has more active pieces. The black rooks are badly placed.} (16. Na4 $16) 16... Ndf6 $2 {[%emt 0:00:28]} ({Black should play} 16... Nc5 $1 $14 17. Bxc5 Nf4) 17. Ne2 $18 {[%emt 0:00:27]} h6 {[%emt 0:01:21]} 18. Rac1 $36 {[%emt 0:01:07][%mdl 2048] White has strong initiative.} Rb8 {[%emt 0:01:00]} 19. Qxa6 {[%emt 0:00:14]} Nh7 {[%emt 0:00:19]} (19... Nd7 $142 20. Rb1 Nc5) 20. Ng3 {[%emt 0:01:04]} Nf4 {[%emt 0:00:23]} 21. Bxf4 {[%emt 0:00:08]} exf4 {[%emt 0:00:01]} 22. Nf5 {[%emt 0:00:11]} Bh4 {[%emt 0:01:02]} (22... Ra8 $16 {might work better.} 23. Qe2 Bf6) 23. Qxd6 {[%emt 0:01:18]} Rxb2 {[%emt 0:01:25]} (23... Qxd6 $16 {was worth a try.} 24. Nxd6 Rxb2) 24. Qxd8 {[%emt 0:00:18]} ({And not} 24. Qxf4 Bxf2+ 25. Kh1 Bxe1 26. Rxe1 Rxa2 $11) 24... Bxf2+ {[%emt 0:00:16]} (24... Bxd8 $142 25. a4 h5) 25. Kf1 {[%emt 0:00:02]} Rxd8 {[%emt 0:00:01]} 26. Re2 {[%emt 0:00:02]} Rxe2 {[%emt 0:00:22]} 27. Kxe2 {[%emt 0:00:01]} Bb6 {[%emt 0:00:17]} 28. Ne7+ {[%emt 0:00:47]} Kf8 {[%emt 0:00:07]} 29. Nc8 {[%emt 0:00:56]} Be3 {[%emt 0:00:13]} 30. Rc7 {[%emt 0:00:19]} Ng5 {[%emt 0:01:03]} (30... h5 $142 31. a4 g5) 31. Bd7 {[%emt 0:00:09] White is clearly winning.} g6 {[%emt 0:01:02]} 32. h4 {[%emt 0:00:20]} Nh7 {[%emt 0:00:01]} 33. e5 {[%emt 0:00:01] [#] Prevents Nf6. Hoping for e6.} Bd4 {[%emt 0:00:39]} 34. e6 {[%emt 0:00:02]} fxe6 {[%emt 0:00:13]} 35. dxe6 {[%emt 0:00:01] Threatening mate with e7+.} Bf6 {[%emt 0:00:04] Inhibits e7+.} 36. a4 {[%emt 0:00:09] Weighted Error Value: White=0.16 (very precise) /Black=0.50} 1-0

[Event "1st Anfield Cup 2022"]
[Site "Kyiv"]
[Date "2022.09.25"]
[Round "6.1"]
[White "Vysochin, Spartak"]
[Black "Andreev, Eduard"]
[Result "1/2-1/2"]
[ECO "A46"]
[WhiteElo "2512"]
[BlackElo "2413"]
[Annotator "TA"]
[PlyCount "51"]
[EventDate "2022.09.20"]
[EventType "swiss"]
[EventCountry "UKR"]
[SourceTitle "playchess.com"]
[Source "ChessBase"]
[SourceQuality "1"]
[TimeControl "900+10"]

{[%evp 18,19,0,0]} 1. d4 {[%emt 0:00:03]} Nf6 {[%emt 0:00:03]} 2. Nf3 {[%emt 0:00:03]} e6 {[%emt 0:00:04]} 3. g3 {[%emt 0:00:07]} b6 {[%emt 0:00:05]} 4. Bg2 {[%emt 0:00:02]} Bb7 {[%emt 0:00:02]} 5. O-O {[%emt 0:00:02]} Be7 {[%emt 0:00:04]} 6. b3 {[%emt 0:00:19]} O-O {[%emt 0:00:05]} 7. Bb2 {[%emt 0:00:01]} d5 {[%emt 0:00:05]} 8. e3 {[%emt 0:00:04]} Nbd7 {[%emt 0:00:06]} 9. Nbd2 {[%emt 0:00:03]} c5 {[%emt 0:00:06]} 10. c4 {[%emt 0:00:06] [#]} {Predecessor:} Rc8 $146 {E17: Queen's Indian: 4 g3 Bb7 5 Bg2 Be7.} 11. Qe2 dxc4 12. bxc4 cxd4 13. exd4 Bd6 14. Rfe1 Re8 15. Rac1 Qe7 16. Qd3 Nf8 17. d5 h6 18. Nh4 Qd8 19. dxe6 Bxg2 20. exf7+ Kxf7 21. Rxe8 Qxe8 22. Bxf6 Bb7 23. Qxd6 gxf6 24. Qf4 Qc6 25. Ndf3 h5 26. Ne5+ {1-0 (26) Moussard,J (2651)-Shuvalova,P (2493) Chess.com INT 2022} 1/2-1/2

[Event "1st Anfield Cup 2022"]
[Site "Kyiv"]
[Date "2022.09.25"]
[Round "6.2"]
[White "Bakhmatsky, Vladislav"]
[Black "Pavlov, Sergey"]
[Result "1/2-1/2"]
[ECO "A46"]
[WhiteElo "2468"]
[BlackElo "2333"]
[Annotator "TA"]
[PlyCount "92"]
[EventDate "2022.09.20"]
[EventType "swiss"]
[EventCountry "UKR"]
[SourceTitle "playchess.com"]
[Source "ChessBase"]
[SourceQuality "1"]
[TimeControl "900+10"]

{[%evp 11,92,4,24,19,22,2,6,0,0,0,0,0,0,0,0,0,0,0,-2,-2,54,25,22,22,24,19,29,14,21,14,23,19,22,0,21,0,0,0,0,0,0,0,0,0,76,81,79,84,71,0,0,0,0,0,0,0,0,0,0,0,0,0,0,0,0,0,0,0,0,0,0,0,0,0,0,0,0,0,0,0,0,0,0]} 1. d4 {[%emt 0:00:02]} Nf6 {[%emt 0:00:03]} 2. Nf3 {[%emt 0:00:02]} e6 {[%emt 0:00:02]} 3. Bf4 {[%emt 0:00:01]} c5 {[%emt 0:00:04]} 4. e3 {[%emt 0:00:02]} Nc6 {[%emt 0:00:05]} 5. Nbd2 {[%emt 0:00:08]} d5 {[%emt 0:00:10]} 6. c3 {[%emt 0:00:06]} cxd4 {[%emt 0:00:09] 6...Nh5 is the recent fashion.} 7. exd4 {[%emt 0:00:01] D02: 1 d4 d5 2 Nf3 sidelines, including 2...Nf6 3 g3 and 2...Nf6 3 Bf4.} ({Don't play} 7. Nxd4 Bd6 $11) 7... Nh5 {[%emt 0:00:05]} 8. Be3 {[%emt 0:00:01]} Bd6 {[%emt 0:00:12]} 9. Ne5 {[%emt 0:00:02]} Nf6 {[%emt 0:00:09]} 10. f4 {[%emt 0:00:02]} Qb6 {[%emt 0:00:10]} 11. Qb3 {[%emt 0:00:02]} Ng8 {[%emt 0:00:14]} 12. Bd3 {[%emt 0:00:01]} Nge7 {[%emt 0:00:14]} 13. O-O {[%emt 0:00:21]} f6 {[%emt 0:00:01] [#]} 14. Nxc6 $146 {[%emt 0:01:23]} ({Predecessor:} 14. Nef3 O-O 15. Rfe1 Bd7 16. Rac1 Rac8 17. Bb1 Qxb3 18. axb3 a5 19. g3 b5 20. Bf2 {1-0 (72) Ozen,D (2397)-Thybo,J (2568) Tornelo INT 2021}) 14... bxc6 {[%emt 0:00:32]} 15. Qc2 {[%emt 0:05:29]} Rb8 {[%emt 0:04:58]} (15... Nf5 $11 16. Bf2 O-O) 16. b4 {[%emt 0:02:23]} (16. c4 $5 {[%cal Rc4c5]} Qb7 17. Nb3 $14) 16... Ba6 {[%emt 0:00:56]} 17. Nb3 {[%emt 0:04:20]} Bxd3 {[%emt 0:02:08]} 18. Qxd3 {[%emt 0:00:02]} Kf7 {[%emt 0:00:04]} 19. a4 {[%emt 0:00:36]} h5 {[%emt 0:00:46]} 20. g3 {[%emt 0:00:08]} (20. Nc5 {with more complications.} Rbe8 21. Rae1 h4 22. Bf2) 20... Nf5 {[%emt 0:01:36]} 21. Bf2 {[%emt 0:00:18]} Qc7 {[%emt 0:01:52]} 22. Qf3 {[%emt 0:00:49]} Rbg8 {[%emt 0:01:05]} 23. Be3 {[%emt 0:01:06]} g5 {[%emt 0:01:09]} 24. fxg5 {[%emt 0:00:02]} h4 {[%emt 0:00:01][%cal Rh4g3]} 25. Nc5 {[%emt 0:00:54]} Bxc5 {[%emt 0:01:41]} 26. bxc5 {[%emt 0:00:53]} hxg3 {[%emt 0:00:06]} 27. hxg3 {[%emt 0:00:11]} Qxg3+ {[%emt 0:00:51]} (27... fxg5 $11 28. Qg4 Rg6) 28. Qxg3 $16 {[%emt 0:00:01] Chess con chili.} Nxg3 {[%emt 0:00:01]} 29. Rxf6+ {[%emt 0:00:04]} Ke7 {[%emt 0:00:02] [#] Threatens to win with ...Rh1+.} 30. Ra2 {[%emt 0:00:29]} (30. Rh6 $16 {And now Rb1 would win.} Ne4 31. Kh2) 30... Ne4 $11 {[%emt 0:00:27][%csl LRc3,LRf6,LRg5] The position is equal.} 31. Rf3 {[%emt 0:00:01]} Nxg5 {[%emt 0:00:08]} 32. Bxg5+ {[%emt 0:00:01]} Rxg5+ {[%emt 0:00:01][%mdl 4096] Endgame KRR-KRR} 33. Rg2 {[%emt 0:00:01]} Rhg8 {[%emt 0:00:16]} 34. Rxg5 {[%emt 0:00:13]} Rxg5+ {[%emt 0:00:01] KR-KR} 35. Kf2 {[%emt 0:00:34]} Rf5 {[%emt 0:00:02]} 36. Rxf5 {[%emt 0:00:10]} exf5 {[%emt 0:00:00] KP-KP} 37. Ke3 {[%emt 0:00:10]} Kf6 {[%emt 0:00:04]} 38. a5 {[%emt 0:00:10]} a6 {[%emt 0:00:35]} 39. Kf4 {[%emt 0:00:06]} Kg6 $1 {[%emt 0:00:01]} 40. Kf3 {[%emt 0:00:14]} Kg5 {[%emt 0:00:15]} 41. c4 $1 {[%emt 0:00:02]} dxc4 {[%emt 0:00:09]} 42. d5 $1 {[%emt 0:00:01]} c3 {[%emt 0:00:11] [#] ( -> ...c2)} (42... cxd5 {is a self mate.} 43. c6 d4 44. c7 d3 45. c8=Q d2 46. Qd8+ Kg6 47. Qxd2) 43. dxc6 {[%emt 0:00:01]} c2 {[%emt 0:00:04]} 44. c7 {[%emt 0:00:01]} c1=Q {[%emt 0:00:03]} 45. c8=Q {[%emt 0:00:01]} Qc3+ {[%emt 0:00:11]} 46. Kf2 {[%emt 0:00:02]} Qd2+ {[%emt 0:00:32] Weighted Error Value: White=0.06 (flawless) /Black=0.08 (flawless)} 1/2-1/2

[Event "1st Anfield Cup 2022"]
[Site "Kyiv"]
[Date "2022.09.25"]
[Round "6.3"]
[White "Maly, Alexey"]
[Black "Samunenkov, Ihor"]
[Result "1/2-1/2"]
[ECO "E10"]
[WhiteElo "2370"]
[BlackElo "2469"]
[Annotator "TA"]
[PlyCount "61"]
[EventDate "2022.09.20"]
[EventType "swiss"]
[EventCountry "UKR"]
[SourceTitle "playchess.com"]
[Source "ChessBase"]
[SourceQuality "1"]
[TimeControl "900+10"]

{[%evp 24,61,0,0,7,0,0,0,0,0,0,-29,0,-22,-28,-56,-67,-188,20,20,17,27,97,97,102,0,0,0,103,0,0,0,111,91,192,0,0,-78,0,-11]} 1. d4 {[%emt 0:00:01]} Nf6 {[%emt 0:00:01]} 2. c4 {[%emt 0:00:02]} e6 {[%emt 0:00:02]} 3. Nf3 {[%emt 0:00:02]} d5 {[%emt 0:00:02]} 4. e3 {[%emt 0:00:01]} Be7 {[%emt 0:00:02]} 5. Nbd2 {[%emt 0:00:01]} O-O {[%emt 0:00:03]} 6. Bd3 {[%emt 0:00:01]} c5 {[%emt 0:00:01]} 7. b3 {[%emt 0:00:03]} cxd4 {[%emt 0:00:06]} 8. exd4 {[%emt 0:00:02]} b6 {[%emt 0:00:03]} 9. Bb2 {[%emt 0:00:01]} Bb7 {[%emt 0:00:16]} 10. O-O {[%emt 0:00:02]} Nc6 {[%emt 0:01:55]} 11. Rc1 {[%emt 0:00:27]} Rc8 {[%emt 0:00:24]} 12. Qe2 {[%emt 0:00:01]} dxc4 {[%emt 0:01:35]} 13. bxc4 {[%emt 0:00:01]} Re8 {[%emt 0:00:04] E14: Queen's Indian: Classical Variation (4 e3).} 14. Rfd1 {[%emt 0:00:03]} Bf8 {[%emt 0:00:46]} 15. h3 {[%emt 0:00:01]} g6 {[%emt 0:00:53]} 16. Qe3 {[%emt 0:00:01]} Bg7 {[%emt 0:00:15]} 17. Bb1 {[%emt 0:01:41] [#]} Ne7 $146 {[%emt 0:00:20]} ({Predecessor:} 17... Re7 18. Ne5 Rec7 19. f4 Na5 20. Bd3 Nd7 21. Nb3 Nc6 22. Be2 Ne7 23. g4 Nxe5 24. dxe5 {½-½ (33) Meissner,R (2232)-Brzezinski,B (2200) ICCF email 2014}) 18. Ne5 {[%emt 0:00:33]} Nf5 {[%emt 0:00:08]} 19. Bxf5 {[%emt 0:00:52]} exf5 {[%emt 0:00:05]} 20. f4 {[%emt 0:01:07]} (20. Ndf3 $15) 20... Ne4 $2 {[%emt 0:01:22]} (20... Nh5 $19 {And now ...Bh6 would win.} 21. Qf2 Bh6) 21. Nxe4 $11 {[%emt 0:00:22]} Bxe4 {[%emt 0:00:03] This bishop pair is nice.} 22. d5 {[%emt 0:01:38]} Qd6 {[%emt 0:02:32]} (22... Bf8 $11 {keeps the balance.}) 23. Ba3 $16 {[%emt 0:04:50]} Qd8 {[%emt 0:01:49]} 24. Bb2 {[%emt 0:00:44] White is more active.} Qd6 {[%emt 0:00:49][%cal Og6g5]} 25. Ba3 {[%emt 0:00:01]} Qd8 {[%emt 0:00:01]} 26. Bb2 {[%emt 0:02:23]} Qd6 {[%emt 0:00:26][%cal Og6g5]} 27. Ba3 Qd8 {[#]} 28. d6 $1 {d7 is the strong threat.} Re6 {[#]} (28... Bxe5 $16 29. fxe5 Qd7) 29. d7 $2 (29. c5 $1 $18 {[%cal Rc5b6]}) 29... Rc7 $11 30. Bd6 (30. Qd2 $11) 30... Rb7 (30... Bxe5 $17 31. fxe5 Rxd7) 31. c5 $1 {Weighted Error Value: White=0.34/Black=0.30} 1/2-1/2

[Event "1st Anfield Cup 2022"]
[Site "Kyiv"]
[Date "2022.09.25"]
[Round "6.4"]
[White "Golubev, Mikhail"]
[Black "Shishkin, Vadim"]
[Result "1-0"]
[ECO "B89"]
[WhiteElo "2461"]
[BlackElo "2417"]
[Annotator "TA"]
[PlyCount "45"]
[EventDate "2022.09.20"]
[EventType "swiss"]
[EventCountry "UKR"]
[SourceTitle "playchess.com"]
[Source "ChessBase"]
[SourceQuality "1"]
[TimeControl "900+10"]

{[%evp 29,45,-41,-32,-68,43,-198,-170,-186,-142,-188,0,0,0,0,127,94,1083,1053]} 1. e4 {[%emt 0:00:01]} c5 {[%emt 0:00:01]} 2. Nf3 {[%emt 0:00:03]} Nc6 {[%emt 0:00:02]} 3. Nc3 {[%emt 0:00:03]} d6 {[%emt 0:00:07]} 4. d4 {[%emt 0:00:02]} cxd4 {[%emt 0:00:02]} 5. Nxd4 {[%emt 0:00:06]} Nf6 {[%emt 0:00:01]} 6. Bc4 {[%emt 0:00:04]} e6 {[%emt 0:00:02]} 7. Be3 {[%emt 0:00:07]} Be7 {[%emt 0:00:08]} 8. Qe2 {[%emt 0:00:10]} a6 {[%emt 0:00:57]} 9. O-O-O {[%emt 0:00:12]} Qc7 {[%emt 0:01:02]} 10. Bb3 {[%emt 0:00:08]} Na5 {[%emt 0:00:14]} 11. g4 {[%emt 0:00:05][%cal Bg2g4,Bg4g5][%mdl 32]} O-O {[%emt 0:00:27]} 12. g5 {[%emt 0:01:38]} Nxb3+ {[%emt 0:00:01]} 13. axb3 {[%emt 0:00:06]} Nd7 {[%emt 0:00:03]} 14. Rhg1 {[%emt 0:00:37]} b5 {[%emt 0:00:22][%cal Bb7b5,Bb5b4][%mdl 32]} 15. f4 {[%emt 0:00:55]} b4 $1 {[%emt 0:01:22]} 16. Nf5 {[%emt 0:00:37] B89: Sicilian: Velimirovic Attack.} Nc5 {[%emt 0:05:38] [#]} (16... exf5 $15 17. Nd5 Qd8 18. exf5 Re8) 17. Nd5 $146 {[%emt 0:08:10]} ({Predecessor:} 17. Nh6+ gxh6 18. gxh6+ Kh8 19. Qg2 Bf6 20. Bd4 Nxb3+ 21. cxb3 e5 22. fxe5 dxe5 23. Bf2 Bg4 24. Qxg4 {1-0 (37) Anisimov,P (2527)-Lutsko,I (2489) St Petersburg 2006}) 17... exd5 $19 {[%emt 0:00:29]} 18. Nxg7 {[%emt 0:00:02][%cal Oc1b1] Black is clearly better.} Kxg7 {[%emt 0:02:17]} 19. Qh5 {[%emt 0:00:29] Bd4+ would kill now.} Rh8 $2 {[%emt 0:03:10]} (19... Nxe4 20. Qh6+ Kg8 21. Bd4 f6 22. g6) (19... dxe4 $2 20. Bd4+ Kg8 21. g6 Nxb3+ 22. Kb1 Qxc2+ 23. Kxc2 Nxd4+ 24. Rxd4 hxg6 25. f5 Bxf5 26. Qxf5 Rac8+ 27. Kb1 $18) (19... Kg8 $2 20. g6 fxg6 {[#]} 21. Rxg6+ $1 Kh8 22. Bd4+ Bf6 23. Rxf6 (23. Bxf6+ Rxf6 24. Rxf6 Be6 $14) 23... Nxb3+ 24. Kb1 Nxd4 25. Rxf8+ Kg7 26. Rg1+ Kxf8 27. Qh6+ Ke8 28. Rg8+ Kd7 29. Rg7+ Kc6 30. exd5+ Kb7 31. Rxc7+ Kxc7 32. Qg7+ Bd7 33. Qxd4 $18) ({Better is} 19... Nxb3+ $1 $19 20. Kb1 d4 21. Rxd4 Be6 22. Qh6+ Kh8 23. Rxb4 Rg8 $1 24. cxb3 Rg6) 20. Bd4+ $11 {[%emt 0:01:40]} Kf8 $1 {[%emt 0:01:18]} (20... Kg8 $2 21. g6 Nxb3+ 22. Kb1 Qxc2+ 23. Kxc2 Nxd4+ 24. Kb1 hxg6 25. Qxd5 $18) 21. Bxh8 {[%emt 0:00:45]} dxe4 {[%emt 0:00:01]} (21... Nxb3+ $1 $11 22. Kb1 Qa5 23. cxb3 dxe4) 22. Qxh7 $16 {[%emt 0:00:20] aiming for g6. The board is on fire. White is more active.} Bb7 $2 {[%emt 0:00:46][%mdl 8192]} (22... Ke8 $2 23. g6 Be6 24. Qg8+ Bf8 25. g7 Nxb3+ 26. Kb1 $18) (22... Nxb3+ $16 23. Kb1 Qa5 24. Bg7+ (24. cxb3 $2 Bf5 $19) 24... Ke8 25. Qh8+ (25. cxb3 $2 Bf5 $19) 25... Kd7 26. Qh3+ (26. cxb3 Qf5 $16) 26... Ke8 27. Qh8+ (27. Qxb3 Be6 $16) 27... Kd7 28. Qh3+ (28. cxb3 Qf5 $11) 28... Kc6 29. Qxb3 Be6) 23. g6 {[%emt 0:00:25] Weighted Error Value: White=0.45/Black=0.61} 1-0